fUST/lending_fUST_20240723
["ID","MTS","AMOUNT","RATE_DAILY","PERIOD"]
[332994113,1721735464134,-354.35833344,0.00014246,2]
[332994114,1721735464144,-500.0,0.00014246,2]
[332994115,1721735464155,-500.0,0.00014246,2]
[332994116,1721735464166,-500.0,0.00014246,2]
[332994117,1721735464176,-500.0,0.00014246,2]
[332994118,1721735464185,-500.0,0.00014246,2]
[332994119,1721735464195,-580.18,0.00014246,2]
[332994120,1721735464204,-500.0,0.00014246,2]
[332994121,1721735464214,-500.0,0.00014246,2]
[332994122,1721735464225,-500.0,0.00014246,2]
[332994123,1721735464235,-500.0,0.00014246,2]
[332994124,1721735464245,-281.14,0.00014246,2]
[332994125,1721735464254,-500.0,0.00014246,2]
[332994126,1721735464265,-500.0,0.00014246,2]
[332994127,1721735464274,-500.0,0.00014246,2]
[332994128,1721735464284,-623.5333814,0.00014246,2]
[332994129,1721735464294,-500.0,0.00014246,2]
[332994130,1721735464304,-500.0,0.00014246,2]
[332994131,1721735464314,-500.0,0.00014246,2]
[332994132,1721735464326,-500.0,0.00014246,2]
[332994133,1721735464335,-500.0,0.00014246,2]
[332994134,1721735464346,-294.69,0.00014246,2]
[332994135,1721735464358,-500.0,0.00014246,2]
[332994136,1721735464369,-500.0,0.00014246,2]
[332994137,1721735464378,-500.0,0.00014246,2]
[332994138,1721735464388,-495.42704099,0.00014246,2]
[332994139,1721735464398,-500.0,0.00014246,2]
[332994140,1721735464407,-193.25,0.00014246,2]
[332994141,1721735464417,-500.0,0.00014246,2]
[332994142,1721735464426,-500.0,0.00014246,2]
[332994143,1721735464436,-174.92654563,0.00014246,2]
[332994144,1721735464447,-500.0,0.00014246,2]
[332994145,1721735464459,-500.0,0.00014246,2]
[332994146,1721735464470,-500.0,0.00014246,2]
[332994147,1721735464479,-500.0,0.00014246,2]
[332994148,1721735464488,-500.0,0.00014246,2]
[332994149,1721735464498,-500.0,0.00014246,2]
[332994150,1721735464508,-500.0,0.00014246,2]
[332994151,1721735464518,-192.29,0.00014246,2]
[332994152,1721735464527,-500.0,0.00014246,2]
[332994153,1721735464537,-380.33436425,0.00014246,2]
[332994154,1721735464547,-169.28898463,0.00014246,2]
[332994155,1721735464556,-500.0,0.00014246,2]
[332994156,1721735464568,-486.07,0.00014246,2]
[332994157,1721735464578,-166.21,0.00014246,2]
[332994158,1721735464588,-505.76789101,0.00014246,2]
[332994159,1721735464598,-503.41014375,0.00014246,2]
[332994160,1721735464609,-507.38360203,0.00014246,2]
[332994161,1721735464619,-241.23,0.00014246,2]
[332994162,1721735464629,-500.0,0.00014246,2]
[332994163,1721735464641,-460.46583845,0.00014246,2]
[332994164,1721735464651,-500.0,0.00014246,2]
[332994165,1721735464661,-509.10978148,0.00014246,2]
[332994166,1721735464671,-500.0,0.00014246,2]
[332994167,1721735464680,-500.0,0.00014246,2]
[332994168,1721735464693,-500.0,0.00014246,2]
[332994169,1721735464706,-500.0,0.00014246,2]
[332994170,1721735464716,-500.0,0.00014246,2]
[332994171,1721735464726,-410.3244286,0.00014246,2]
[332994172,1721735464736,-500.0,0.00014246,2]
[332994173,1721735464746,-500.0,0.00014246,2]
[332994174,1721735464756,-440.19,0.00014246,2]
[332994175,1721735464766,-505.95455861,0.00014246,2]
[332994176,1721735464776,-500.0,0.00014246,2]
[332994177,1721735464786,-506.26101819,0.00014246,2]
[332994178,1721735464795,-500.0,0.00014246,2]
[332994179,1721735464806,-500.0,0.00014246,2]
[332994180,1721735464816,-500.0,0.00014246,2]
[332994181,1721735464826,-500.0,0.00014246,2]
[332994182,1721735464838,-500.0,0.00014246,2]
[332994183,1721735464848,-349.99094577,0.00014246,2]
[332994184,1721735464859,-500.0,0.00014246,2]
[332994185,1721735464870,-503.85599657,0.00014246,2]
[332994186,1721735464882,-500.0,0.00014246,2]
[332994187,1721735464892,-500.0,0.00014246,2]
[332994188,1721735464902,-644.64,0.00014246,2]
[332994189,1721735464913,-500.0,0.00014246,2]
[332994190,1721735464923,-500.0,0.00014246,2]
[332994191,1721735464932,-500.0,0.00014246,2]
[332994192,1721735464942,-631.82388009,0.00014246,2]
[332994193,1721735464952,-500.0,0.00014246,2]
[332994194,1721735464961,-500.0,0.00014246,2]
[332994195,1721735464974,-500.0,0.00014246,2]
[332994196,1721735464984,-500.0,0.00014246,2]
[332994197,1721735464995,-500.0,0.00014246,2]
[332994198,1721735465005,-643.09,0.00014246,2]
[332994199,1721735465015,-500.0,0.00014246,2]
[332994200,1721735465025,-505.30694748,0.00014246,2]
[332994201,1721735465034,-500.0,0.00014246,2]
[332994202,1721735465043,-495.69119579,0.00014246,2]
[332994203,1721735465053,-317.11720752,0.00014246,2]
[332994204,1721735465062,-500.0,0.00014246,2]
[332994205,1721735465072,-500.0,0.00014246,2]
[332994206,1721735465082,-500.0,0.00014246,2]
[332994207,1721735465092,-500.0,0.00014246,2]
[332994208,1721735465101,-321.56,0.00014246,2]
[332994209,1721735465111,-505.91958693,0.00014246,2]
[332994210,1721735465121,-502.31026883,0.00014246,2]
[332994211,1721735465130,-391.44429165,0.00014246,2]
[332994212,1721735465141,-247.74,0.00014246,2]
[332994213,1721735465151,-505.41128614,0.00014246,2]
[332994214,1721735465161,-551.28,0.00014246,2]
[332994215,1721735465170,-562.50149434,0.00014246,2]
[332994216,1721735465180,-150.38055334,0.00014246,2]
[332994217,1721735465190,-411.54283891,0.00014246,2]
[332994218,1721735465200,-503.88434184,0.00014246,2]
[332994219,1721735465210,-504.69108843,0.00014246,2]
[332994220,1721735465220,-555.58735193,0.00014246,2]
[332994221,1721735465230,-505.51260469,0.00014246,2]
[332994222,1721735465240,-500.0,0.00014246,2]
[332994223,1721735465250,-500.0,0.00014246,2]
[332994224,1721735465259,-500.0,0.00014246,2]
[332994225,1721735465269,-618.17,0.00014246,2]
[332994226,1721735465279,-358.4,0.00014246,2]
[332994227,1721735465290,-360.64,0.00014246,2]
[332994228,1721735465299,-239.54,0.00014246,2]
[332994229,1721735465309,-500.0,0.00014246,2]
[332994230,1721735465318,-196.09,0.00014246,2]
[332994231,1721735465328,-1930.55,0.00014246,2]
[332994232,1721735465337,-255.41,0.00014246,2]
[332994233,1721735465346,-500.0,0.00014246,2]
[332994234,1721735465356,-500.0,0.00014246,2]
[332994235,1721735465365,-500.0,0.00014246,2]
[332994236,1721735465375,-500.0,0.00014246,2]
[332994237,1721735465384,-500.0,0.00014246,2]
[332994238,1721735465393,-500.0,0.00014246,2]
[332994239,1721735465403,-500.0,0.00014246,2]
[332994240,1721735465412,-500.0,0.00014246,2]
[332994241,1721735465422,-277.34,0.00014246,2]
[332994242,1721735465431,-500.0,0.00014246,2]
[332994243,1721735465441,-500.0,0.00014246,2]
[332994244,1721735465451,-500.0,0.00014246,2]
[332994245,1721735465461,-500.0,0.00014246,2]
[332994246,1721735465471,-500.0,0.00014246,2]
[332994247,1721735465482,-500.0,0.00014246,2]
[332994248,1721735465492,-360.02,0.00014246,2]
[332994249,1721735465502,-500.0,0.00014246,2]
[332994250,1721735465513,-500.0,0.00014246,2]
[332994251,1721735465522,-500.0,0.00014246,2]
[332994252,1721735465532,-500.0,0.00014246,2]
[332994253,1721735465542,-500.0,0.00014246,2]
[332994254,1721735465551,-468.73,0.00014246,2]
[332994255,1721735465561,-500.0,0.00014246,2]
[332994256,1721735465571,-500.0,0.00014246,2]
[332994257,1721735465581,-470.24,0.00014246,2]
[332994258,1721735465591,-500.0,0.00014246,2]
[332994259,1721735465600,-500.0,0.00014246,2]
[332994260,1721735465610,-500.0,0.00014246,2]
[332994261,1721735465620,-500.0,0.00014246,2]
[332994262,1721735465630,-500.0,0.00014246,2]
[332994263,1721735465640,-643.36,0.00014246,2]
[332994264,1721735465650,-246.68,0.00014246,2]
[332994265,1721735465659,-500.0,0.00014246,2]
[332994266,1721735465670,-500.0,0.00014246,2]
[332994267,1721735465679,-500.0,0.00014246,2]
[332994268,1721735465689,-219.61,0.00014246,2]
[332994269,1721735465699,-500.0,0.00014246,2]
[332994270,1721735465709,-500.0,0.00014246,2]
[332994271,1721735465721,-191.93,0.00014246,2]
[332994272,1721735465731,-500.0,0.00014246,2]
[332994273,1721735465741,-472.91,0.00014246,2]
[332994274,1721735465751,-500.0,0.00014246,2]
[332994275,1721735465760,-500.0,0.00014246,2]
[332994276,1721735465769,-500.0,0.00014246,2]
[332994277,1721735465779,-500.0,0.00014246,2]
[332994278,1721735465789,-500.0,0.00014246,2]
[332994279,1721735465799,-500.0,0.00014246,2]
[332994280,1721735465809,-1859.28,0.00014246,2]
[332994281,1721735465819,-500.0,0.00014246,2]
[332994282,1721735465828,-500.0,0.00014246,2]
[332994283,1721735465842,-500.0,0.00014246,2]
[332994284,1721735465851,-229.65,0.00014246,2]
[332994285,1721735465861,-458.59,0.00014246,2]
[332994286,1721735465871,-603.07238227,0.00014246,2]
[332994287,1721735465881,-500.0,0.00014246,2]
[332994288,1721735465891,-500.0,0.00014246,2]
[332994289,1721735465901,-500.0,0.00014246,2]
[332994290,1721735465912,-500.0,0.00014246,2]
[332994291,1721735465922,-500.0,0.00014246,2]
[332994292,1721735465932,-500.0,0.00014246,2]
[332994293,1721735465942,-189.86,0.00014246,2]
[332994294,1721735465952,-500.0,0.00014246,2]
[332994295,1721735465961,-203.81,0.00014246,2]
[332994296,1721735465973,-500.0,0.00014246,2]
[332994297,1721735465983,-500.0,0.00014246,2]
[332994298,1721735465992,-303.22,0.00014246,2]
[332994299,1721735466002,-500.0,0.00014246,2]
[332994300,1721735466012,-181.89,0.00014246,2]
[332994301,1721735466022,-500.0,0.00014246,2]
[332994302,1721735466032,-500.0,0.00014246,2]
[332994303,1721735466042,-500.0,0.00014246,2]
[332994304,1721735466051,-344.77,0.00014246,2]
[332994305,1721735466061,-500.0,0.00014246,2]
[332994306,1721735466071,-500.0,0.00014246,2]
[332994307,1721735466081,-500.0,0.00014246,2]
[332994308,1721735466091,-611.33,0.00014246,2]
[332994309,1721735466101,-500.0,0.00014246,2]
[332994310,1721735466110,-500.0,0.00014246,2]
[332994311,1721735466120,-438.37,0.00014246,2]
[332994312,1721735466130,-500.0,0.00014246,2]
[332994313,1721735466140,-566.52,0.00014246,2]
[332994314,1721735466150,-500.0,0.00014246,2]
[332994315,1721735466160,-266.03581356,0.00014246,2]
[332994316,1721735466169,-345.24,0.00014246,2]
[332994317,1721735466179,-500.0,0.00014246,2]
[332994318,1721735466188,-500.0,0.00014246,2]
[332994319,1721735466198,-241.17,0.00014246,2]
[332994320,1721735466208,-500.0,0.00014246,2]
[332994321,1721735466218,-501.25,0.00014246,2]
[332994322,1721735466227,-189.51,0.00014246,2]
[332994323,1721735466237,-500.0,0.00014246,2]
[332994324,1721735466246,-500.0,0.00014246,2]
[332994325,1721735466256,-500.0,0.00014246,2]
[332994326,1721735466267,-319.08,0.00014246,2]
[332994327,1721735466463,-500.0,0.00014246,2]
[332994328,1721735466476,-500.0,0.00014246,2]
[332994329,1721735466485,-500.0,0.00014246,2]
[332994330,1721735466494,-187.36,0.00014246,2]
[332994331,1721735466503,-631.54,0.00014246,2]
[332994332,1721735466512,-500.0,0.00014246,2]
[332994333,1721735466522,-500.0,0.00014246,2]
[332994334,1721735466531,-500.0,0.00014246,2]
[332994335,1721735466542,-470.04,0.00014246,2]
[332994336,1721735466552,-500.0,0.00014246,2]
[332994337,1721735466565,-500.0,0.00014246,2]
[332994338,1721735466575,-500.0,0.00014246,2]
[332994339,1721735466585,-500.0,0.00014246,2]
[332994340,1721735466594,-194.62,0.00014246,2]
[332994341,1721735466604,-500.0,0.00014246,2]
[332994342,1721735466614,-194.74,0.00014246,2]
[332994343,1721735466624,-500.0,0.00014246,2]
[332994344,1721735466635,-517.59,0.00014246,2]
[332994345,1721735466647,-289.19,0.00014246,2]
[332994346,1721735466659,-500.0,0.00014246,2]
[332994347,1721735466669,-500.0,0.00014246,2]
[332994348,1721735466679,-599.04,0.00014246,2]
[332994349,1721735466689,-362.57,0.00014246,2]
[332994350,1721735466699,-192.67,0.00014246,2]
[332994351,1721735466709,-428.78,0.00014246,2]
[332994352,1721735466720,-500.0,0.00014246,2]
[332994353,1721735466730,-500.0,0.00014246,2]
[332994354,1721735466741,-500.0,0.00014246,2]
[332994355,1721735466753,-500.0,0.00014246,2]
[332994356,1721735466763,-500.0,0.00014246,2]
[332994357,1721735466772,-500.0,0.00014246,2]
[332994358,1721735466783,-500.0,0.00014246,2]
[332994359,1721735466794,-614.25,0.00014246,2]
[332994360,1721735466803,-178.41,0.00014246,2]
[332994361,1721735466813,-500.0,0.00014246,2]
[332994362,1721735466822,-500.0,0.00014246,2]
[332994363,1721735466835,-500.0,0.00014246,2]
[332994364,1721735466847,-525.57,0.00014246,2]
[332994365,1721735466856,-500.0,0.00014246,2]
[332994366,1721735466866,-500.0,0.00014246,2]
[332994367,1721735466876,-500.0,0.00014246,2]
[332994368,1721735466886,-500.0,0.00014246,2]
[332994369,1721735466896,-500.0,0.00014246,2]
[332994370,1721735466905,-500.0,0.00014246,2]
[332994371,1721735466918,-401.24,0.00014246,2]
[332994372,1721735466930,-500.0,0.00014246,2]
[332994373,1721735466942,-500.0,0.00014246,2]
[332994374,1721735466954,-198.58,0.00014246,2]
[332994375,1721735466967,-482.53,0.00014246,2]
[332994376,1721735466977,-500.0,0.00014246,2]
[332994377,1721735466986,-216.36,0.00014246,2]
[332994378,1721735466996,-500.0,0.00014246,2]
[332994379,1721735467009,-320.05,0.00014246,2]
[332994380,1721735467019,-596.94,0.00014246,2]
[332994381,1721735467029,-198.14,0.00014246,2]
[332994382,1721735467041,-500.0,0.00014246,2]
[332994383,1721735467051,-500.0,0.00014246,2]
[332994384,1721735467061,-500.0,0.00014246,2]
[332994385,1721735467071,-537.69,0.00014246,2]
[332994386,1721735467081,-500.0,0.00014246,2]
[332994387,1721735467091,-500.0,0.00014246,2]
[332994388,1721735467103,-500.0,0.00014246,2]
[332994389,1721735467114,-523.89,0.00014246,2]
[332994390,1721735467123,-630.64,0.00014246,2]
[332994391,1721735467133,-500.0,0.00014246,2]
[332994392,1721735467143,-292.68,0.00014246,2]
[332994393,1721735467155,-500.0,0.00014246,2]
[332994394,1721735467166,-500.0,0.00014246,2]
[332994395,1721735467176,-617.51,0.00014246,2]
[332994396,1721735467185,-626.03,0.00014246,2]
[332994397,1721735467195,-591.72,0.00014246,2]
[332994398,1721735467205,-500.0,0.00014246,2]
[332994399,1721735467217,-254.31,0.00014246,2]
[332994400,1721735467227,-575.72,0.00014246,2]
[332994401,1721735467236,-500.0,0.00014246,2]
[332994402,1721735467247,-378.75,0.00014246,2]
[332994403,1721735467257,-500.0,0.00014246,2]
[332994404,1721735467268,-610.96,0.00014246,2]
[332994405,1721735467278,-602.91,0.00014246,2]
[332994406,1721735467288,-500.0,0.00014246,2]
[332994407,1721735467298,-500.0,0.00014246,2]
[332994408,1721735467309,-369.27,0.00014246,2]
[332994409,1721735467319,-587.71,0.00014246,2]
[332994410,1721735467328,-583.87,0.00014246,2]
[332994411,1721735467338,-500.0,0.00014246,2]
[332994412,1721735467347,-500.0,0.00014246,2]
[332994413,1721735467357,-247.72,0.00014246,2]
[332994414,1721735467367,-500.0,0.00014246,2]
[332994415,1721735467377,-321.3,0.00014246,2]
[332994416,1721735467386,-265.05,0.00014246,2]
[332994417,1721735467396,-530.41,0.00014246,2]
[332994418,1721735467406,-581.29,0.00014246,2]
[332994419,1721735467415,-500.0,0.00014246,2]
[332994420,1721735467424,-500.0,0.00014246,2]
[332994421,1721735467434,-500.0,0.00014246,2]
[332994422,1721735467443,-639.45,0.00014246,2]
[332994423,1721735467452,-473.62,0.00014246,2]
[332994424,1721735467461,-238.82,0.00014246,2]
[332994425,1721735467472,-500.0,0.00014246,2]
[332994426,1721735467482,-558.28,0.00014246,2]
[332994427,1721735467491,-500.0,0.00014246,2]
[332994428,1721735467501,-500.0,0.00014246,2]
[332994429,1721735467511,-500.0,0.00014246,2]
[332994430,1721735467520,-500.0,0.00014246,2]
[332994431,1721735467530,-550.11,0.00014246,2]
[332994432,1721735467539,-312.22,0.00014246,2]
[332994433,1721735467548,-202.05,0.00014246,2]
[332994434,1721735467558,-321.3,0.00014246,2]
[332994435,1721735467568,-500.0,0.00014246,2]
[332994436,1721735467577,-500.0,0.00014246,2]
[332994437,1721735467587,-517.87,0.00014246,2]
[332994438,1721735467597,-500.0,0.00014246,2]
[332994439,1721735467606,-500.0,0.00014246,2]
[332994440,1721735467616,-543.84,0.00014246,2]
[332994441,1721735467625,-500.0,0.00014246,2]
[332994442,1721735467636,-165.68,0.00014246,2]
[332994443,1721735467645,-521.55,0.00014246,2]
[332994444,1721735467655,-460.39,0.00014246,2]
[332994445,1721735467664,-500.0,0.00014246,2]
[332994446,1721735467673,-525.0,0.00014246,2]
[332994447,1721735467683,-500.0,0.00014246,2]
[332994448,1721735467692,-500.0,0.00014246,2]
[332994449,1721735467703,-500.0,0.00014246,2]
[332994450,1721735467713,-454.63,0.00014246,2]
[332994451,1721735467726,-187.2,0.00014246,2]
[332994452,1721735467736,-500.0,0.00014246,2]
[332994453,1721735467746,-500.0,0.00014246,2]
[332994454,1721735467756,-500.0,0.00014246,2]
[332994455,1721735467765,-500.0,0.00014246,2]
[332994456,1721735467774,-420.76,0.00014246,2]
[332994457,1721735467788,-500.0,0.00014246,2]
[332994458,1721735467798,-162.58,0.00014246,2]
[332994459,1721735467808,-515.4,0.00014246,2]
[332994460,1721735467817,-393.06933083,0.00014246,2]
[332994461,1721735467828,-500.0,0.00014246,2]
[332994462,1721735467840,-1122.55,0.00014246,2]
[332994463,1721735467850,-674.2,0.00014246,2]
[332994464,1721735467860,-616.24,0.00014246,2]
[332994465,1721735467870,-500.0,0.00014246,2]
[332994466,1721735467880,-444.31,0.00014246,2]
[332994467,1721735467890,-500.0,0.00014246,2]
[332994468,1721735467901,-473.9,0.00014246,2]
[332994469,1721735467911,-195.53,0.00014246,2]
[332994470,1721735467923,-500.0,0.00014246,2]
[332994471,1721735467933,-500.0,0.00014246,2]
[332994472,1721735467943,-329.69,0.00014246,2]
[332994473,1721735467952,-653.4,0.00014246,2]
[332994474,1721735467963,-500.0,0.00014246,2]
[332994475,1721735467978,-500.0,0.00014246,2]
[332994476,1721735467990,-3152.33,0.00014246,2]
[332994477,1721735468000,-500.0,0.00014246,2]
[332994478,1721735468009,-500.0,0.00014246,2]
[332994479,1721735468019,-500.0,0.00014246,2]
[332994480,1721735468028,-609.28,0.00014246,2]
[332994481,1721735468038,-500.0,0.00014246,2]
[332994482,1721735468048,-500.0,0.00014246,2]
[332994483,1721735468058,-500.0,0.00014246,2]
[332994484,1721735468067,-932.31,0.00014246,2]
[332994485,1721735468077,-500.0,0.00014246,2]
[332994486,1721735468087,-500.0,0.00014246,2]
[332994487,1721735468096,-500.0,0.00014246,2]
[332994488,1721735468105,-500.0,0.00014246,2]
[332994489,1721735468115,-641.25,0.00014246,2]
[332994490,1721735468125,-500.0,0.00014246,2]
[332994491,1721735468134,-500.0,0.00014246,2]
[332994492,1721735468143,-500.0,0.00014246,2]
[332994493,1721735468153,-500.0,0.00014246,2]
[332994494,1721735468162,-500.0,0.00014246,2]
[332994495,1721735468172,-231.03,0.00014246,2]
[332994496,1721735468181,-500.0,0.00014246,2]
[332994497,1721735468191,-500.0,0.00014246,2]
[332994498,1721735468200,-432.76,0.00014246,2]
[332994499,1721735468209,-458.49,0.00014246,2]
[332994500,1721735468222,-500.0,0.00014246,2]
[332994501,1721735468231,-500.0,0.00014246,2]
[332994502,1721735468241,-511.47,0.00014246,2]
[332994503,1721735468250,-500.0,0.00014246,2]
[332994504,1721735468260,-500.0,0.00014246,2]
[332994505,1721735468269,-500.0,0.00014246,2]
[332994506,1721735468278,-233.92,0.00014246,2]
[332994507,1721735468287,-500.0,0.00014246,2]
[332994508,1721735468296,-500.0,0.00014246,2]
[332994509,1721735468306,-500.0,0.00014246,2]
[332994510,1721735468315,-500.0,0.00014246,2]
[332994511,1721735468324,-414.76,0.00014246,2]
[332994512,1721735468333,-500.0,0.00014246,2]
[332994513,1721735468344,-500.0,0.00014246,2]
[332994514,1721735468353,-523.16,0.00014246,2]
[332994515,1721735468362,-500.0,0.00014246,2]
[332994516,1721735468372,-179.35947835,0.00014246,2]
[332994517,1721735468381,-500.0,0.00014246,2]
[332994518,1721735468391,-500.0,0.00014246,2]
[332994519,1721735468401,-500.0,0.00014246,2]
[332994520,1721735468410,-226.72,0.00014246,2]
[332994521,1721735468421,-500.0,0.00014246,2]
[332994522,1721735468435,-500.0,0.00014246,2]
[332994523,1721735468445,-500.0,0.00014246,2]
[332994524,1721735468454,-500.0,0.00014246,2]
[332994525,1721735468463,-500.0,0.00014246,2]
[332994526,1721735468479,-318.56,0.00014246,2]
[332994527,1721735468488,-264.36,0.00014246,2]
[332994528,1721735468497,-500.0,0.00014246,2]
[332994529,1721735468507,-287.58,0.00014246,2]
[332994530,1721735468516,-500.0,0.00014246,2]
[332994531,1721735468526,-500.0,0.00014246,2]
[332994532,1721735468535,-500.0,0.00014246,2]
[332994533,1721735468545,-658.76,0.00014246,2]
[332994534,1721735468554,-500.0,0.00014246,2]
[332994535,1721735468562,-444.77703502,0.00014246,2]
[332994536,1721735469107,-267.555021,0.00013698,2]
[332994537,1721735469116,-267.555021,0.00013698,2]
[332994538,1721735469125,-267.555021,0.00013698,2]
[332994539,1721735469135,-55.22296498,0.00014246,2]
[332994540,1721735469144,-500.0,0.00014246,2]
[332994541,1721735469153,-214.2,0.00014246,2]
[332994542,1721735469162,-500.0,0.00014246,2]
[332994543,1721735469171,-500.0,0.00014246,2]
[332994544,1721735469181,-500.0,0.00014246,2]
[332994545,1721735469190,-462.58,0.00014246,2]
[332994546,1721735469199,-500.0,0.00014246,2]
[332994547,1721735469208,-500.0,0.00014246,2]
[332994548,1721735469218,-629.06,0.00014246,2]
[332994549,1721735469227,-565.53406262,0.00014246,2]
[332994550,1721735469235,-500.0,0.00014246,2]
[332994551,1721735469245,-500.0,0.00014246,2]
[332994552,1721735469254,-500.0,0.00014246,2]
[332994553,1721735469263,-500.0,0.00014246,2]
[332994554,1721735469273,-500.0,0.00014246,2]
[332994555,1721735469282,-500.0,0.00014246,2]
[332994556,1721735469291,-500.0,0.00014246,2]
[332994557,1721735469301,-500.0,0.00014246,2]
[332994558,1721735469309,-500.0,0.00014246,2]
[332994559,1721735469319,-500.0,0.00014246,2]
[332994560,1721735469328,-500.0,0.00014246,2]
[332994561,1721735469337,-500.0,0.00014246,2]
[332994562,1721735469346,-500.0,0.00014246,2]
[332994563,1721735469355,-500.0,0.00014246,2]
[332994564,1721735469364,-500.0,0.00014246,2]
[332994565,1721735469373,-507.77035777,0.00014246,2]
[332994566,1721735469382,-500.0,0.00014246,2]
[332994567,1721735469391,-500.0,0.00014246,2]
[332994568,1721735469401,-500.0,0.00014246,2]
[332994569,1721735469410,-500.0,0.00014246,2]
[332994570,1721735469419,-500.0,0.00014246,2]
[332994571,1721735469428,-508.70727902,0.00014246,2]
[332994572,1721735469437,-355.81217664,0.00014246,2]
[332994573,1721735469446,-500.0,0.00014246,2]
[332994574,1721735469455,-500.0,0.00014246,2]
[332994575,1721735469464,-500.0,0.00014246,2]
[332994576,1721735469475,-500.0,0.00014246,2]
[332994577,1721735469484,-500.0,0.00014246,2]
[332994578,1721735469493,-500.0,0.00014246,2]
[332994579,1721735469503,-382.7536594,0.00014246,2]
[332994580,1721735469513,-502.93396417,0.00014246,2]
[332994581,1721735469523,-500.0,0.00014246,2]
[332994582,1721735469532,-391.06,0.00014246,2]
[332994583,1721735469541,-500.0,0.00014246,2]
[332994584,1721735469551,-500.0,0.00014246,2]
[332994585,1721735469561,-500.0,0.00014246,2]
[332994586,1721735469571,-500.0,0.00014246,2]
[332994587,1721735469581,-500.0,0.00014246,2]
[332994588,1721735469590,-500.0,0.00014246,2]
[332994589,1721735469599,-500.0,0.00014246,2]
[332994590,1721735469608,-500.0,0.00014246,2]
[332994591,1721735469618,-500.0,0.00014246,2]
[332994592,1721735469627,-500.0,0.00014246,2]
[332994593,1721735469637,-500.0,0.00014246,2]
[332994594,1721735469647,-500.0,0.00014246,2]
[332994595,1721735469657,-500.0,0.00014246,2]
[332994596,1721735469666,-500.0,0.00014246,2]
[332994597,1721735469676,-500.0,0.00014246,2]
[332994598,1721735469685,-500.0,0.00014246,2]
[332994599,1721735469694,-500.0,0.00014246,2]
[332994600,1721735469703,-500.0,0.00014246,2]
[332994601,1721735469713,-500.0,0.00014246,2]
[332994602,1721735469723,-500.0,0.00014246,2]
[332994603,1721735469733,-500.0,0.00014246,2]
[332994604,1721735469742,-635.9856,0.00014246,2]
[332994605,1721735469751,-500.0,0.00014246,2]
[332994606,1721735469761,-500.0,0.00014246,2]
[332994607,1721735469770,-500.0,0.00014246,2]
[332994608,1721735469780,-500.0,0.00014246,2]
[332994609,1721735469789,-500.0,0.00014246,2]
[332994610,1721735469799,-500.0,0.00014246,2]
[332994611,1721735469808,-500.0,0.00014246,2]
[332994612,1721735469817,-500.0,0.00014246,2]